{"text_format":"3","workbook":"xlsx","n_sheets":4,"sheets":["Medzníky","Plán","Informácie","Údaje grafu"],"not_rendered":{"charts":1,"defined_names":2},"read":"whole","date_system":"1900"}

{"sheet":"Medzníky","index":0,"n_rows":27,"n_cols":5,"rows_kept":27}
["V tomto hárku vytvorte plán zadaním dôležitých medzníkov a aktivít.\nV bunke C1 je nadpis tohto hárka. \nV hárku Informácie je uvedený postup na použitie tohto hárka vrátane pokynov pre čítačky obrazovky.\nĎalšie pokyny nájdete v nasledujúcich bunkách v stĺpci A.",null,"Medzníky"]
["V bunkách C2 až E2 sú záhlavia tabuľky. Pomocou možností v časti Zoradiť a filtrovať môžete zoradiť údaje alebo vyhľadať konkrétne záznamy.\nV tabuľke začínajúcej v bunke C3 zadajte medzníky s dátumami a nastavte pozíciu na zakreslenie medzníka do grafu.\nStĺpec B je skrytý. V grafe vytvorenom z týchto údajov sa používa posúvač, ktorý slúži na zobrazenie častí časovej osi. Stĺpec B určuje, ktoré medzníky sa majú vykresliť v grafe pri posunutí posúvača. \nUpozornenie: Odstránením alebo úpravou obsahu stĺpca B sa môže narušiť integrita vykresľovania grafu v tomto zošite.","Č.","Pozícia","Dátum","Medzník"]
["Do bunky C1 zadajte pozícia na zakreslenie dátumu a medzníka do grafu. Ak chcete medzník zakresliť do grafu nad časovú os, zadajte kladné číslo od 1 do 3. Ak chcete medzník zakresliť do grafu pod časovú os, zadajte záporné číslo od -1 do -3.\nDo stĺpcov D a E v tabuľke zadajte dátum a medzník alebo aktivitu.\nZopakujte tento postup pre každý nový riadok v tabuľke vpravo.\nV riadkoch 3 až 26 sú zadané vzorové údaje. Upravte alebo odstráňte vzorový obsah a vytvorte si vlastný plán.\nĎalší pokyn nájdete v bunke A27.",{"$f":"ROW($A1)","v":1},1,{"$f":"TODAY()","v":"2018-06-29"},"Začiatok"]
[null,{"$f":"ROW($A2)","v":2},-2,{"$f":"D3+10","v":"2018-07-09"},"Analýzu problému\naktivita 1"]
[null,3,1,{"$f":"D4+20","v":"2018-07-29"},"Vývoj obchodného prípadu\naktivita 1\naktivita 2"]
[null,4,-1,{"$f":"D5+30","v":"2018-08-28"},"Revízia prezentácie"]
[null,5,{"v":-0.5,"d":"-1"},{"$f":"D6+40","v":"2018-10-07"},"Exek. spustenie\naktivita 1\naktivita 2"]
[null,6,2,{"$f":"D7+50","v":"2018-11-26"},"Exek. zosúladenie\naktivita 1\naktivita 2\naktivita 3"]
[null,7,{"v":0.5,"d":"1"},{"$f":"D8+60","v":"2019-01-25"},"Zapojenie účastníkov projektu"]
[null,8,-1,{"$f":"D9+70","v":"2019-04-05"},"Výber zdrojov"]
[null,9,{"v":0.5,"d":"1"},{"$f":"D10+80","v":"2019-06-24"},"Vytvorenie tímu\naktivita 1 "]
[null,10,-2,{"$f":"D11+90","v":"2019-09-22"},"Spustenie tímu\naktivita 1 \naktivita 2\naktivita 3\naktivita 4"]
[null,11,3,{"$f":"D12+100","v":"2019-12-31"},"Začiatok zhromažďovania údajov"]
[null,12,-1,{"$f":"D13+90","v":"2020-03-30"},"Analýza údajov"]
[null,13,1,{"$f":"D14+80","v":"2020-06-18"},"Návrh"]
[null,14,1,{"$f":"D15+70","v":"2020-08-27"},"Overenie konceptu"]
[null,15,-3,{"$f":"D16+60","v":"2020-10-26"},"Test a analýza"]
[null,16,-2,{"$f":"D17+50","v":"2020-12-15"},"Úprava návrhu"]
[null,17,2,{"$f":"D18+40","v":"2021-01-24"},"Prepracovanie"]
[null,18,-1,{"$f":"D19+30","v":"2021-02-23"},"Test a analýza"]
[null,19,1,{"$f":"D20+20","v":"2021-03-15"},"Úprava návrhu"]
[null,20,-3,{"$f":"D21+10","v":"2021-03-25"},"Prepracovanie"]
[null,21,2,{"$f":"D22+20","v":"2021-04-14"},"Záverečný test"]
[null,22,1,{"$f":"D23+30","v":"2021-05-14"},"Test betaverzie"]
[null,23,-3,{"$f":"D24+40","v":"2021-06-23"},"Revízia"]
[null,24,-2,{"$f":"D25+50","v":"2021-08-12"},"Vydanie na marketing"]
["Ak chcete pridať do tabuľky Medzníky plánu ďalšie riadky, jednoducho vložte nad týmto riadkom nový riadok.\nV tomto hárku nie sú žiadne ďalšie pokyny.",null,"Ak chcete pridať ďalšie medzníky, vložte nad týmto riadkom nové riadky."]

{"sheet":"Plán","index":1,"n_rows":3,"n_cols":4,"rows_kept":3}
["V tomto hárku je graf, v ktorom sa zobrazujú medzníky z hárka Medzníky. \nV bunkách B2, C2 a D2 sú uvedené roky a je v nich použitý štýl Nadpis 3.\nV grafe je naraz vykreslených 10 medzníkov. \nPomocou posúvača v bunkách B4 až D4 sa môžete posúvať v pláne.\nV bunkách B3 až D3 sú roky časovej osi.\nV tomto hárku nie sú žiadne ďalšie pokyny."]
[]
[null,{"$f":"'Údaje grafu'!B20","v":2018},{"$f":"'Údaje grafu'!B21","v":""},{"$f":"'Údaje grafu'!B22","v":2019}]

{"sheet":"Informácie","index":2,"n_rows":5,"n_cols":1,"rows_kept":5}
["Informácie o tomto zošite"]
["Pokyny pre čítačky obrazovky"]
["Tento zošit obsahuje 4 hárky. \n\nMedzníky\nPlán\nInformácie\nÚdaje grafu (skryté)\n\nV každom hárku sú v stĺpci A od bunky A1 uvedené pokyny pre príslušný hárok. Pokyny sú napísané ako skrytý text. Každý krok vás prevedie informáciami v danom riadku. Nasledujúci krok pokračuje v bunke A2, A3 a tak ďalej, pokiaľ nie je výslovne uvedené inak. V texte s pokynmi môže byť napríklad uvedené, že ďalší krok nájdete v bunke A6. \n\nSkrytý text sa nevytlačí.\n\nAk chcete odstrániť tieto pokyny z ktoréhokoľvek hárka, jednoducho odstráňte stĺpec A.\n"]
["Tento plán zakreslí do grafu medzníky a aktivity s použitím pozícií. Pomocou pozícií môžete zvýšiť dôležitosť medzníka alebo aktivity. Stačí upraviť hodnoty podľa svojich predstáv dôležitosti. Je napríklad možné, že medzník a aktivita 3 majú vyššiu dôležitosť ako medzník a aktivita 2. Ak to chcete vyznačiť v grafe, jednoducho zadajte do stĺpca Pozícia pre medzník a aktivitu 3 vyššiu hodnotu ako pre medzník a aktivitu 2.  \n"]
["Toto je posledný pokyn v tomto hárku."]

{"sheet":"Údaje grafu","index":3,"n_rows":26,"n_cols":4,"rows_kept":26,"hidden":true}
["V tomto hárku sú údaje na vytvorenie dynamického grafu. Tento hárok neodstraňujte.\nOdstránením tohto hárka sa môžu narušiť dynamické funkcie zošita.","Tento hárok neodstraňujte."]
["V bunke B2 je názov tabuľky.","Dynamický obsah grafu"]
["V bunkách B3 až D3 sú záhlavia tabuľky. \nTáto tabuľka sa aktualizuje automaticky na základe obsahu zadaného v hárku Medzníky.\nUpozornenie: Úpravou alebo odstránením obsahu v tejto tabuľke sa môže narušiť funkcia dynamickej aktualizácie grafu plánu v hárku Plán.\nĎalší pokyn nájdete v bunke A15.","Dátum","Udalosti","Pozícia"]
[null,{"$f":"IFERROR(IF(LEN(Medzníky!D3)=0,\"\",INDEX(MedzníkyPlánu[],Medzníky!$B3+$B$17,3)),\"\")","v":"2018-06-29"},{"$f":"IFERROR(IF(LEN(Medzníky!E3)=0,\"\",INDEX(MedzníkyPlánu[],Medzníky!$B3+$B$17,4)),\"\")","v":"Začiatok"},{"$f":"IFERROR(INDEX(MedzníkyPlánu[],Medzníky!$B3+$B$17,2),\"\")","v":1}]
[null,{"$f":"IFERROR(IF(LEN(Medzníky!D4)=0,\"\",INDEX(MedzníkyPlánu[],Medzníky!$B4+$B$17,3)),\"\")","v":"2018-07-09"},{"$f":"IFERROR(IF(LEN(Medzníky!E4)=0,\"\",INDEX(MedzníkyPlánu[],Medzníky!$B4+$B$17,4)),\"\")","v":"Analýzu problému\naktivita 1"},{"$f":"IFERROR(INDEX(MedzníkyPlánu[],Medzníky!$B4+$B$17,2),\"\")","v":-2}]
[null,{"$f":"IFERROR(IF(LEN(Medzníky!D5)=0,\"\",INDEX(MedzníkyPlánu[],Medzníky!$B5+$B$17,3)),\"\")","v":"2018-07-29"},{"$f":"IFERROR(IF(LEN(Medzníky!E5)=0,\"\",INDEX(MedzníkyPlánu[],Medzníky!$B5+$B$17,4)),\"\")","v":"Vývoj obchodného prípadu\naktivita 1\naktivita 2"},{"$f":"IFERROR(INDEX(MedzníkyPlánu[],Medzníky!$B5+$B$17,2),\"\")","v":1}]
[null,{"$f":"IFERROR(IF(LEN(Medzníky!D6)=0,\"\",INDEX(MedzníkyPlánu[],Medzníky!$B6+$B$17,3)),\"\")","v":"2018-08-28"},{"$f":"IFERROR(IF(LEN(Medzníky!E6)=0,\"\",INDEX(MedzníkyPlánu[],Medzníky!$B6+$B$17,4)),\"\")","v":"Revízia prezentácie"},{"$f":"IFERROR(INDEX(MedzníkyPlánu[],Medzníky!$B6+$B$17,2),\"\")","v":-1}]
[null,{"$f":"IFERROR(IF(LEN(Medzníky!D7)=0,\"\",INDEX(MedzníkyPlánu[],Medzníky!$B7+$B$17,3)),\"\")","v":"2018-10-07"},{"$f":"IFERROR(IF(LEN(Medzníky!E7)=0,\"\",INDEX(MedzníkyPlánu[],Medzníky!$B7+$B$17,4)),\"\")","v":"Exek. spustenie\naktivita 1\naktivita 2"},{"$f":"IFERROR(INDEX(MedzníkyPlánu[],Medzníky!$B7+$B$17,2),\"\")","v":-0.5}]
[null,{"$f":"IFERROR(IF(LEN(Medzníky!D8)=0,\"\",INDEX(MedzníkyPlánu[],Medzníky!$B8+$B$17,3)),\"\")","v":"2018-11-26"},{"$f":"IFERROR(IF(LEN(Medzníky!E8)=0,\"\",INDEX(MedzníkyPlánu[],Medzníky!$B8+$B$17,4)),\"\")","v":"Exek. zosúladenie\naktivita 1\naktivita 2\naktivita 3"},{"$f":"IFERROR(INDEX(MedzníkyPlánu[],Medzníky!$B8+$B$17,2),\"\")","v":2}]
[null,{"$f":"IFERROR(IF(LEN(Medzníky!D9)=0,\"\",INDEX(MedzníkyPlánu[],Medzníky!$B9+$B$17,3)),\"\")","v":"2019-01-25"},{"$f":"IFERROR(IF(LEN(Medzníky!E9)=0,\"\",INDEX(MedzníkyPlánu[],Medzníky!$B9+$B$17,4)),\"\")","v":"Zapojenie účastníkov projektu"},{"$f":"IFERROR(INDEX(MedzníkyPlánu[],Medzníky!$B9+$B$17,2),\"\")","v":0.5}]
[null,{"$f":"IFERROR(IF(LEN(Medzníky!D10)=0,\"\",INDEX(MedzníkyPlánu[],Medzníky!$B10+$B$17,3)),\"\")","v":"2019-04-05"},{"$f":"IFERROR(IF(LEN(Medzníky!E10)=0,\"\",INDEX(MedzníkyPlánu[],Medzníky!$B10+$B$17,4)),\"\")","v":"Výber zdrojov"},{"$f":"IFERROR(INDEX(MedzníkyPlánu[],Medzníky!$B10+$B$17,2),\"\")","v":-1}]
[null,{"$f":"IFERROR(IF(LEN(Medzníky!D11)=0,\"\",INDEX(MedzníkyPlánu[],Medzníky!$B11+$B$17,3)),\"\")","v":"2019-06-24"},{"$f":"IFERROR(IF(LEN(Medzníky!E11)=0,\"\",INDEX(MedzníkyPlánu[],Medzníky!$B11+$B$17,4)),\"\")","v":"Vytvorenie tímu\naktivita 1 "},{"$f":"IFERROR(INDEX(MedzníkyPlánu[],Medzníky!$B11+$B$17,2),\"\")","v":0.5}]
[null,{"$f":"IFERROR(IF(LEN(Medzníky!D12)=0,\"\",INDEX(MedzníkyPlánu[],Medzníky!$B12+$B$17,3)),\"\")","v":"2019-09-22"},{"$f":"IFERROR(IF(LEN(Medzníky!E12)=0,\"\",INDEX(MedzníkyPlánu[],Medzníky!$B12+$B$17,4)),\"\")","v":"Spustenie tímu\naktivita 1 \naktivita 2\naktivita 3\naktivita 4"},{"$f":"IFERROR(INDEX(MedzníkyPlánu[],Medzníky!$B12+$B$17,2),\"\")","v":-2}]
[]
["Možnosť posúvať sa v pláne je založená na hodnote prírastku. V bunke B15 je názov tejto možnosti.\nV bunkách B16 a B17 je tabuľka so záhlavím a jednou hodnotou.\nĎalší pokyn nájdete v bunke A19.","Funkcia posúvania"]
[null,"Prírastok riadka"]
[null,0]
[]
["Graf plán zobrazí roky časovej osi. Roky sa na tento účel musia načítať zo zoznamu medzník. \nV bunke B19 je názov tejto časti – Rok. \nHodnoty roka v bunkách C20 až C22 sa generujú automaticky.\nUpozornenie: Odstránením alebo úpravou týchto rokov sa môže zmeniť presnosť grafu plán.\nĎalší pokyn nájdete v bunke A24.","Rok"]
[null,{"$f":"IFERROR(YEAR(B4),\"\")","v":2018},"<-- rok začiatočnej pozície plánu"]
[null,{"$f":"IFERROR(IF(YEAR($B$9)=$B$20,\"\",YEAR($B$9)),\"\")","v":""},"<-- rok stredného obdobia plánu (poznámka: táto bunka môže byť prázdna, ak ide o rovnaký rok ako rok na začiatočnej pozícii plánu"]
[null,{"$f":"IFERROR(IF(YEAR($B$13)=$B$20,\"\",YEAR($B$13)),\"\")","v":2019},"<-- rok koncovej pozície plánu (poznámka: táto bunka môže byť prázdna, ak ide o rovnaký rok ako rok na začiatočnej pozícii plánu)"]
[]
["Prstencové značky v grafe plánu obsahujú dátumy z dynamického obsahu grafu v tomto hárku. Dátumy predstavujú hodnoty prvý dátum v bunke C24, stredný dátum v bunke C25 a posledný dátum v bunke C26.\nV tomto hárku nie sú žiadne ďalšie pokyny.","Prvý dátum",{"$f":"B4","v":"2018-06-29"}]
[null,"Stredný dátum",{"$f":"B9","v":"2018-11-26"}]
[null,"Posledný dátum",{"$f":"B13","v":"2019-09-22"}]